bitfinex/quotes_BTCUSD_20241014
["timestamp","ask_amount","ask_price","bid_price","bid_amount"]
[1728873877195,0.19841691,62721.0,62720.0,0.01193023]
[1728873878164,0.03898091,62721.0,62720.0,0.08733023]
[1728873882963,0.007,62721.0,62720.0,0.08733023]
[1728873883173,0.159433,62722.0,62720.0,0.08633023]
[1728873883391,0.005,62721.0,62720.0,0.08633023]
[1728873883628,0.005,62721.0,62720.0,0.08733023]
[1728873883629,0.007,62721.0,62720.0,0.08733023]
[1728873884530,0.160433,62722.0,62720.0,0.08633023]
[1728873884720,0.159433,62722.0,62720.0,0.08796823]
[1728873884920,0.161433,62722.0,62720.0,0.08796823]
[1728873885594,0.20918767,62722.0,62720.0,0.08796823]
[1728873885840,0.23416798,62722.0,62720.0,0.08796823]
[1728873886295,0.159436,62721.0,62720.0,0.08796823]
[1728873886508,0.07473498,62722.0,62720.0,0.08796823]
[1728873886719,0.23216898,62722.0,62720.0,0.08796823]
[1728873886946,0.001,62721.0,62720.0,0.08796823]
[1728873887169,0.04881151,62721.0,62720.0,0.08796823]
[1728873887386,0.04781151,62721.0,62720.0,0.08796823]
[1728873888544,0.04881151,62721.0,62720.0,0.08796823]
[1728873889648,0.04883726,62721.0,62720.0,0.08796823]
[1728873890541,0.001,62721.0,62720.0,0.08796823]
[1728873890759,0.04883731,62721.0,62720.0,0.08796823]
[1728873891716,0.001,62721.0,62720.0,0.08796823]
[1728873892368,0.160436,62721.0,62720.0,0.08796823]
[1728873892607,0.04883827,62721.0,62720.0,0.08796823]
[1728873892839,0.04883827,62721.0,62720.0,0.24740623]
[1728873895646,0.001,62721.0,62720.0,0.24740623]
[1728873895841,0.02598002,62721.0,62720.0,0.24740623]
[1728873896111,0.07381829,62721.0,62720.0,0.24740623]
[1728873896842,0.02598002,62721.0,62720.0,0.24740623]
[1728873897062,0.07382186,62721.0,62720.0,0.24740623]
[1728873897774,0.02598002,62721.0,62720.0,0.24740623]
[1728873898010,0.02598002,62721.0,62720.0,0.24759873]
[1728873898244,0.02598002,62721.0,62720.0,0.34758733]
[1728873898480,0.02598002,62721.0,62720.0,0.34439873]
[1728873899193,0.02498002,62721.0,62720.0,0.34439873]
[1728873899422,0.02498002,62721.0,62720.0,0.34539873]
[1728873899892,0.02498002,62721.0,62720.0,0.34439873]
[1728873900123,0.02498002,62721.0,62720.0,0.35039873]
[1728873900354,0.02598002,62721.0,62720.0,0.35039873]
[1728873900583,0.02698002,62721.0,62720.0,0.35039873]
[1728873901559,0.002,62721.0,62720.0,0.35039873]
[1728873903584,0.002,62721.0,62720.0,0.46325763]
[1728873912323,0.002,62721.0,62720.0,0.47937675]
[1728873912989,0.002,62721.0,62720.0,0.62448164]
[1728873916719,0.002,62721.0,62720.0,0.73734054]
[1728873916948,0.002,62721.0,62720.0,0.62448164]
[1728873917182,0.002,62721.0,62720.0,0.73734054]
[1728873917414,0.002,62721.0,62720.0,0.74234054]
[1728873917639,0.002,62721.0,62720.0,0.77433054]
[1728873918107,0.002,62721.0,62720.0,0.77633054]
[1728873918365,0.002,62721.0,62720.0,0.82418342]
[1728873918366,0.001,62721.0,62720.0,0.82418342]
[1728873918606,0.001,62721.0,62720.0,0.77633054]
[1728873918832,0.002,62721.0,62720.0,0.77633054]
[1728873919074,0.001,62721.0,62720.0,0.77033054]
[1728873919310,0.002,62721.0,62720.0,0.77633054]
[1728873919553,0.002,62721.0,62720.0,0.77833054]
[1728873919781,0.001,62721.0,62720.0,0.77033054]
[1728873920012,0.000819,62727.0,62726.0,0.3704055]
[1728873920268,0.000819,62727.0,62726.0,0.64448841]
[1728873920500,0.000819,62727.0,62726.0,0.65538196]
[1728873921621,0.000819,62727.0,62726.0,0.66338196]
[1728873921897,0.001819,62727.0,62726.0,0.66338196]
[1728873922140,0.002819,62727.0,62726.0,0.55952306]
[1728873922364,0.002819,62727.0,62726.0,0.67238196]
[1728873922899,0.002819,62727.0,62726.0,0.67938196]
[1728873924705,0.002819,62727.0,62726.0,0.56652306]
[1728873925903,0.002819,62727.0,62726.0,0.66652306]
[1728873926848,0.002819,62727.0,62726.0,0.67847167]
[1728873927297,0.002819,62727.0,62726.0,0.67647167]
[1728873927541,0.002819,62727.0,62726.0,0.67847167]
[1728873927780,0.000819,62732.0,62731.0,0.5983103]
[1728873928031,0.000819,62732.0,62731.0,0.75953431]
[1728873928270,0.000819,62732.0,62731.0,0.77038815]
[1728873930579,0.001819,62732.0,62731.0,0.77738815]
[1728873930800,0.001819,62732.0,62731.0,0.77838815]
[1728873931250,0.002819,62732.0,62731.0,0.78138815]
[1728873931699,0.002819,62732.0,62731.0,0.79038815]
[1728873931952,0.000819,62732.0,62731.0,0.77938815]
[1728873932183,0.000819,62732.0,62731.0,0.77038815]
[1728873932427,0.000819,62732.0,62731.0,0.78338815]
[1728873933378,0.001819,62732.0,62731.0,0.79438815]
[1728873933607,0.000819,62732.0,62731.0,0.78338815]
[1728873933832,0.001819,62732.0,62731.0,0.78338815]
[1728873934064,0.001819,62732.0,62731.0,0.79738815]
[1728873934990,0.001819,62732.0,62731.0,0.79538815]
[1728873937132,0.001819,62732.0,62731.0,0.68252925]
[1728873937616,0.001819,62732.0,62731.0,0.79538815]
[1728873938340,0.001819,62732.0,62731.0,0.58862925]
[1728873940248,0.000819,62732.0,62731.0,0.57562925]
[1728873940472,0.001819,62732.0,62731.0,0.57462925]
[1728873940928,0.002819,62732.0,62731.0,0.58462925]
[1728873941150,0.003819,62732.0,62731.0,0.48477035]
[1728873941395,0.002819,62732.0,62731.0,0.58762925]
[1728873941848,0.003819,62732.0,62731.0,0.48777035]
[1728873942044,0.003819,62732.0,62731.0,0.51552925]
[1728873943236,0.003819,62732.0,62731.0,0.35411274]
[1728873943464,0.003819,62732.0,62731.0,0.35430524]
[1728873943692,0.003819,62732.0,62731.0,0.20945634]
[1728873943915,0.003819,62732.0,62731.0,0.32231524]
[1728873944361,0.001819,62732.0,62731.0,0.29631524]
[1728873944590,0.000819,62732.0,62731.0,0.28331524]
[1728873944823,0.001819,62732.0,62731.0,0.29331524]
[1728873945310,0.001819,62732.0,62731.0,0.28931524]
[1728873945998,0.000819,62732.0,62731.0,0.28331524]
[1728873946217,0.001819,62732.0,62731.0,0.28831524]
[1728873946701,0.001819,62732.0,62731.0,0.29131524]
[1728873952710,0.001819,62732.0,62731.0,0.29450311]
[1728873952943,0.00162622,62732.0,62731.0,0.29450311]
[1728873954349,0.00162622,62732.0,62731.0,0.29131524]
[1728873954586,0.00162622,62732.0,62731.0,0.3264931]
[1728873954879,0.00162622,62732.0,62731.0,0.21044634]
[1728873955105,0.00162622,62732.0,62731.0,0.3264931]
[1728873955326,0.00162622,62732.0,62731.0,0.32330524]
[1728873955808,0.00162622,62732.0,62731.0,0.32030524]
[1728873956043,0.00162622,62732.0,62731.0,0.31530524]
[1728873956278,0.00062622,62732.0,62731.0,0.32030524]
[1728873956515,0.00162622,62732.0,62731.0,0.32830524]
[1728873956749,0.00162622,62732.0,62731.0,0.32330524]
[1728873956977,0.00162622,62732.0,62731.0,0.32930524]
[1728873960662,0.00162622,62732.0,62731.0,0.49052925]
[1728873968887,0.00162622,62732.0,62731.0,0.59272925]
[1728873969125,0.00162622,62732.0,62731.0,0.78698815]
[1728873969351,0.00162622,62732.0,62731.0,0.78898815]
[1728873969570,0.00162622,62732.0,62731.0,1.03841926]
[1728873969806,0.00162622,62732.0,62731.0,1.03641046]
[1728873970494,0.00162622,62732.0,62731.0,0.67576725]
[1728873971197,0.00162622,62732.0,62731.0,0.7235134]
[1728873971418,0.00162622,62732.0,62731.0,0.8363723]
[1728873971646,0.00162622,62732.0,62731.0,0.7235134]
[1728873972820,0.00162622,62732.0,62731.0,0.8363723]
[1728873973995,0.00162622,62732.0,62731.0,0.78862615]
[1728873974228,0.00162622,62732.0,62731.0,0.83637382]
[1728873974475,0.00162622,62732.0,62731.0,0.78862615]
[1728873975666,0.00162622,62732.0,62731.0,0.72351647]
[1728873976582,0.00162622,62732.0,62731.0,0.67576725]
[1728873976806,0.00162622,62732.0,62731.0,0.74731816]
[1728873977039,0.00162622,62732.0,62731.0,0.74931816]
[1728873977260,0.00162622,62732.0,62731.0,0.72552164]
[1728873977502,0.00162622,62732.0,62731.0,0.92560635]
[1728873977756,0.00162622,62732.0,62731.0,1.03657599]
[1728873977995,0.00162622,62732.0,62731.0,0.9669336]
[1728873978218,0.00162622,62732.0,62731.0,0.8540747]
[1728873979414,0.00162622,62732.0,62731.0,1.20933759]
[1728873979896,0.00162622,62732.0,62731.0,1.0899336]
[1728873980125,0.00162622,62732.0,62731.0,1.13966992]
[1728873980362,0.00062622,62732.0,62731.0,1.13166992]
[1728873980597,0.00162622,62732.0,62731.0,1.0899336]
[1728873980822,0.00062622,62732.0,62731.0,1.0759336]
[1728873981044,0.00062622,62732.0,62731.0,1.0819336]
[1728873981282,0.00162622,62732.0,62731.0,1.0959336]
[1728873981514,0.00162622,62732.0,62731.0,0.9630747]
[1728873981749,0.00262622,62732.0,62731.0,0.9770747]
[1728873981973,0.00262622,62732.0,62731.0,1.1039336]
[1728873982429,0.00262622,62732.0,62731.0,1.13964309]
[1728873982646,0.00262622,62732.0,62731.0,1.0899336]
[1728873982864,0.00262622,62732.0,62731.0,0.9770747]
[1728873983311,0.00262622,62732.0,62731.0,1.1039336]
[1728873983566,0.00262622,62732.0,62731.0,0.9910747]
[1728873983762,0.00062622,62732.0,62731.0,0.9770747]
[1728873984241,0.00062622,62732.0,62731.0,0.9910747]
[1728873984470,0.00062622,62732.0,62731.0,1.1039336]
[1728873984915,0.00062622,62732.0,62731.0,0.9910747]
[1728873985159,0.00062622,62732.0,62731.0,1.0899336]
[1728873985372,0.00062622,62732.0,62731.0,1.1039336]
[1728873985616,0.00062622,62732.0,62731.0,1.0899336]
[1728873985835,0.00062622,62732.0,62731.0,1.0759336]
[1728873986060,0.00062622,62732.0,62731.0,0.9770747]
[1728873986289,0.00062622,62732.0,62731.0,0.9910747]
[1728873987197,0.00062622,62732.0,62731.0,0.97687729]
[1728873987655,0.00062622,62732.0,62731.0,0.99087729]
[1728873988322,0.00062622,62732.0,62731.0,1.11012219]
[1728873988552,0.00062622,62732.0,62731.0,1.22936504]
[1728873989007,0.00062622,62732.0,62731.0,1.11650614]
[1728873989450,0.00062622,62732.0,62731.0,1.22936504]
[1728873993816,0.00062622,62732.0,62731.0,1.11650614]
[1728873994057,0.00062622,62732.0,62731.0,0.80004724]
[1728873994299,0.00062622,62732.0,62731.0,0.61116725]
[1728873994521,0.00062622,62732.0,62731.0,0.65885854]
[1728873994748,0.00062622,62732.0,62731.0,0.61116725]
[1728873995203,0.00062622,62732.0,62731.0,0.68270391]
[1728873995440,0.00062622,62732.0,62731.0,0.61116725]
[1728873995694,0.00062622,62732.0,62731.0,0.65886642]
[1728873996150,0.00062622,62732.0,62731.0,0.61116725]
[1728873996378,0.00062622,62732.0,62731.0,0.65886659]
[1728873997113,0.00062622,62732.0,62731.0,0.39830835]
[1728873997348,0.00062622,62732.0,62731.0,0.51116725]
[1728874000047,0.00062622,62732.0,62731.0,0.39830835]
[1728874000278,0.17212622,62732.0,62731.0,0.23208434]
[1728874000522,0.17212622,62732.0,62731.0,0.23189184]
[1728874000769,0.19709902,62732.0,62731.0,0.23189184]
[1728874001264,0.19709902,62732.0,62731.0,0.21789184]
[1728874001502,0.19709902,62732.0,62731.0,0.02149184]
[1728874001736,0.35650702,62732.0,62731.0,0.02149184]
[1728874002196,0.35650702,62732.0,62731.0,0.010638]
[1728874002426,0.35650702,62732.0,62731.0,0.02093855]
[1728874002663,0.46936592,62732.0,62731.0,0.02093855]
[1728874002908,0.44439312,62732.0,62731.0,0.01193855]
[1728874003138,0.44439312,62732.0,62731.0,0.004638]
[1728874003371,0.44439312,62732.0,62731.0,0.011638]
[1728874003590,0.44439312,62732.0,62731.0,0.008638]
[1728874004058,0.44439312,62732.0,62731.0,0.009638]
[1728874004059,0.44639312,62732.0,62731.0,0.009638]
[1728874004503,0.44439312,62732.0,62731.0,0.008638]
[1728874004743,0.44639312,62732.0,62731.0,0.002638]
[1728874004973,0.45239312,62732.0,62731.0,0.003638]
[1728874005920,0.47737077,62732.0,62731.0,0.003638]
[1728874007369,0.63859478,62732.0,62731.0,0.003638]
[1728874008504,0.0048075,62730.0,62727.0,0.001638]
[1728874008740,0.4899433,62728.0,62727.0,0.001638]
[1728874008966,0.75616731,62728.0,62727.0,0.001638]
[1728874009406,0.80394937,62728.0,62727.0,0.001638]
[1728874009629,0.91753702,62728.0,62727.0,0.001638]
[1728874009870,0.5541949,62721.0,62720.0,0.001638]
[1728874010313,0.71541891,62721.0,62720.0,0.01198374]
[1728874010541,0.71541891,62721.0,62720.0,0.001638]
[1728874010765,0.74039989,62721.0,62720.0,0.001638]
[1728874012356,0.75339989,62721.0,62720.0,0.002638]
[1728874012600,0.76639989,62721.0,62720.0,0.003638]
[1728874012820,0.72841891,62721.0,62720.0,0.002638]
[1728874013073,0.74141891,62721.0,62720.0,0.003638]
[1728874013291,0.72841891,62721.0,62720.0,0.002638]
[1728874013543,0.72841891,62721.0,62720.0,0.001638]
[1728874013775,0.71541891,62721.0,62720.0,0.001638]
[1728874014032,0.72841891,62721.0,62720.0,0.002638]
[1728874014790,0.74041891,62721.0,62720.0,0.003638]
[1728874015782,0.7654017,62721.0,62720.0,0.003638]
[1728874017889,0.7702092,62721.0,62720.0,0.003638]
[1728874019038,0.81673558,62721.0,62720.0,0.003638]
[1728874019269,0.7702092,62721.0,62720.0,0.003638]
[1728874022943,0.74522641,62721.0,62720.0,0.003638]
[1728874024045,0.88284417,62721.0,62720.0,0.003638]
[1728874024272,0.76998527,62721.0,62720.0,0.003638]
[1728874024942,0.74498527,62721.0,62720.0,0.001638]
[1728874025171,0.0068075,62713.0,62712.0,0.001638]
[1728874025401,0.77230531,62713.0,62712.0,0.001638]
[1728874025614,0.88516421,62713.0,62712.0,0.001638]
[1728874025844,0.79729448,62713.0,62712.0,0.001638]
[1728874026061,0.95866419,62713.0,62712.0,0.001638]
[1728874026637,0.97266419,62713.0,62712.0,0.002638]
[1728874027072,1.05166419,62713.0,62712.0,0.002638]
[1728874027508,0.53476918,62713.0,62712.0,0.002638]
[1728874027719,0.53476918,62713.0,62712.0,0.001638]
[1728874027720,0.34566918,62713.0,62712.0,0.001638]
[1728874028153,0.37366918,62713.0,62712.0,0.001638]
[1728874028385,0.35966918,62713.0,62712.0,0.001638]
[1728874028590,0.34316918,62713.0,62712.0,0.001638]
[1728874028810,0.35716918,62713.0,62712.0,0.001638]
[1728874029035,0.45516918,62713.0,62712.0,0.001638]
[1728874029524,0.46316918,62713.0,62712.0,0.001638]
[1728874030002,0.45116918,62713.0,62712.0,0.001638]
[1728874031441,0.46116918,62713.0,62712.0,0.001638]
[1728874032637,0.43618001,62713.0,62712.0,0.001638]
[1728874035713,0.46116632,62713.0,62712.0,0.001638]
[1728874037435,0.45116632,62713.0,62712.0,0.001638]
[1728874037683,0.44316632,62713.0,62712.0,0.001638]
[1728874037906,0.45216632,62713.0,62712.0,0.001638]
[1728874038145,0.45916632,62713.0,62712.0,0.001638]
[1728874038435,0.45016632,62713.0,62712.0,0.001638]
[1728874038656,0.45816632,62713.0,62712.0,0.001638]
[1728874039170,0.70716995,62713.0,62712.0,0.001638]
[1728874039411,0.66077382,62713.0,62712.0,0.001638]
[1728874039664,0.65877382,62713.0,62712.0,0.001638]
[1728874040174,0.65959282,62713.0,62712.0,0.001638]
[1728874041903,1.15959282,62713.0,62712.0,0.001638]
[1728874042817,1.13460651,62713.0,62712.0,0.001638]
[1728874043062,0.93399901,62713.0,62712.0,0.001638]
[1728874043299,0.615819,62713.0,62712.0,0.001638]
[1728874043546,0.775275,62713.0,62712.0,0.001638]
[1728874043788,0.775275,62713.0,62712.0,0.01209857]
[1728874044029,0.515819,62713.0,62712.0,0.17155757]
[1728874044593,0.515819,62713.0,62712.0,0.01209857]
[1728874044797,0.515819,62713.0,62712.0,0.17155757]
[1728874045759,0.54080261,62713.0,62712.0,0.17155757]
[1728874046021,0.54080261,62713.0,62712.0,0.001638]
[1728874046487,0.54080261,62713.0,62712.0,0.01208546]
[1728874047401,0.54080261,62713.0,62712.0,0.17154446]
[1728874047901,0.04080261,62713.0,62712.0,0.24934446]
[1728874048581,0.04080261,62713.0,62712.0,0.08988546]
[1728874048810,0.02580261,62713.0,62712.0,0.08988546]
[1728874049255,0.02780261,62713.0,62712.0,0.08988546]
[1728874051053,0.18725861,62713.0,62712.0,0.08988546]
[1728874051270,0.02780261,62713.0,62712.0,0.08988546]
[1728874052131,0.18725861,62713.0,62712.0,0.08988546]
[1728874052583,0.02780261,62713.0,62712.0,0.08988546]
[1728874052801,0.002819,62713.0,62712.0,0.08988546]
[1728874053033,0.01776401,62713.0,62712.0,0.08988546]
[1728874054379,0.01776348,62713.0,62712.0,0.08988546]
[1728874056709,0.17721948,62713.0,62712.0,0.08988546]
[1728874058447,0.01776348,62713.0,62712.0,0.08988546]
[1728874059139,0.002819,62713.0,62712.0,0.08988546]
[1728874059857,0.162275,62713.0,62712.0,0.08988546]
[1728874061045,0.002819,62713.0,62712.0,0.08988546]
[1728874061333,0.002819,62713.0,62712.0,0.24953696]
[1728874061811,0.002819,62713.0,62712.0,0.09007796]
[1728874062267,0.002819,62713.0,62712.0,0.24953696]
[1728874062509,0.002819,62713.0,62712.0,0.48726052]
[1728874062758,0.002819,62713.0,62712.0,0.24953696]
[1728874062988,0.002819,62713.0,62712.0,0.25272559]
[1728874063226,0.002819,62713.0,62712.0,0.24953696]
[1728874063461,0.000819,62713.0,62712.0,0.25272558]
[1728874063708,0.001819,62713.0,62712.0,0.24953696]
[1728874063968,0.001819,62713.0,62712.0,0.25272557]
[1728874064220,0.000819,62713.0,62712.0,0.25272557]
[1728874064465,0.001819,62713.0,62712.0,0.25872557]
[1728874064719,0.001819,62713.0,62712.0,0.25972557]
[1728874065191,0.001819,62713.0,62712.0,0.25653696]
[1728874065425,0.001819,62713.0,62712.0,0.2587256]
[1728874065666,0.002819,62713.0,62712.0,0.2617256]
[1728874067088,0.002819,62713.0,62712.0,0.27399007]
[1728874068006,0.002819,62713.0,62712.0,0.27080143]
[1728874068234,0.002819,62713.0,62712.0,0.25853696]
[1728874075206,0.002819,62713.0,62712.0,0.18073696]
[1728874078068,0.002819,62713.0,62712.0,0.02127796]
[1728874078299,0.162275,62713.0,62712.0,0.02108546]
[1728874079211,0.161275,62713.0,62712.0,0.01508546]
[1728874079444,0.161275,62713.0,62712.0,0.01908546]
[1728874079710,0.160275,62713.0,62712.0,0.01608546]
[1728874079942,0.160275,62713.0,62712.0,0.01508546]
[1728874080406,0.160275,62713.0,62712.0,0.01608546]
[1728874081084,0.160275,62713.0,62712.0,0.005638]
[1728874081531,0.160275,62713.0,62712.0,0.01605858]
[1728874081767,0.160275,62713.0,62712.0,0.01205858]
[1728874081984,0.160275,62713.0,62712.0,0.01305858]
[1728874082236,0.160275,62713.0,62712.0,0.01505858]
[1728874082463,0.160275,62713.0,62712.0,0.01205858]
[1728874082706,0.160275,62713.0,62712.0,0.01505858]
[1728874082956,0.160275,62713.0,62712.0,0.01705858]
[1728874085366,0.69429916,62713.0,62712.0,0.01705858]
[1728874085605,0.82404951,62713.0,62712.0,0.006638]
[1728874085820,0.85702557,62713.0,62712.0,0.006638]
[1728874086499,0.85702557,62713.0,62712.0,0.001638]
[1728874087233,0.85502557,62713.0,62712.0,0.001638]
[1728874087712,0.85702557,62713.0,62712.0,0.001638]
[1728874087959,0.87502557,62713.0,62712.0,0.001638]
[1728874088219,1.00646505,62713.0,62712.0,0.001638]
[1728874088447,0.99846505,62713.0,62712.0,0.001638]
[1728874088696,0.88302557,62713.0,62712.0,0.001638]
[1728874089186,1.02646081,62713.0,62712.0,0.001638]
[1728874089677,1.02846081,62713.0,62712.0,0.001638]
[1728874090224,0.88502557,62713.0,62712.0,0.001638]
[1728874090745,1.02646081,62713.0,62712.0,0.001638]
[1728874091220,0.88302557,62713.0,62712.0,0.001638]
[1728874092444,0.89970748,62713.0,62712.0,0.001638]
[1728874092923,0.8747199,62713.0,62712.0,0.001638]
[1728874093394,0.8767199,62713.0,62712.0,0.001638]
[1728874093620,0.8747199,62713.0,62712.0,0.001638]
[1728874095113,0.87452393,62713.0,62712.0,0.001638]
[1728874095902,0.89951285,62713.0,62712.0,0.001638]
[1728874098848,0.85909331,62713.0,62712.0,0.001638]
[1728874099086,1.28259331,62713.0,62712.0,0.001638]
[1728874099317,1.37807529,62713.0,62712.0,0.001638]
[1728874099566,1.28259331,62713.0,62712.0,0.001638]
[1728874099804,1.28272846,62713.0,62712.0,0.001638]
[1728874100034,1.38807841,62713.0,62712.0,0.001638]
[1728874100268,1.28272846,62713.0,62712.0,0.001638]
[1728874100500,1.40207841,62713.0,62712.0,0.001638]
[1728874100732,1.28272846,62713.0,62712.0,0.001638]
[1728874100985,1.55095216,62713.0,62712.0,0.001638]
[1728874101258,1.51199817,62713.0,62712.0,0.00011346]
[1728874101510,1.75760751,62713.0,62712.0,0.00011346]
[1728874102944,1.73261859,62713.0,62712.0,0.00011346]
[1728874103178,1.73261859,62713.0,62712.0,8.37e-06]
[1728874103907,0.2892665,62712.0,62711.0,3.7e-07]
[1728874104160,1.18920841,62712.0,62711.0,3.7e-07]
[1728874104401,1.18257976,62712.0,62711.0,3.7e-07]
[1728874104640,1.42030332,62712.0,62711.0,3.7e-07]
[1728874104880,1.42030332,62712.0,62700.0,0.0497483]
[1728874104881,0.7989295,62701.0,62700.0,0.0497483]
[1728874105120,1.12324498,62701.0,62700.0,0.0497483]
[1728874105423,0.3849995,62699.0,62698.0,0.23772356]
[1728874105666,0.0068075,62698.0,62697.0,0.1014559]
[1728874105923,0.45451354,62698.0,62697.0,0.1014559]
[1728874106156,0.45052551,62698.0,62697.0,0.1014559]
[1728874106394,0.68342305,62698.0,62697.0,0.1014559]
[1728874106871,0.77442459,62698.0,62697.0,0.1014559]
[1728874107563,0.68340531,62698.0,62697.0,0.1014559]
[1728874107564,0.69740531,62698.0,62697.0,0.1014559]
[1728874107812,0.69540531,62698.0,62697.0,0.1014559]
[1728874108322,0.71140531,62698.0,62697.0,0.1014559]
[1728874108838,1.14643879,62698.0,62697.0,0.1014559]
[1728874109088,1.26570774,62698.0,62697.0,0.1014559]
[1728874109348,1.14643879,62698.0,62697.0,0.1014559]
[1728874110095,1.14643879,62698.0,62688.0,0.0490101]
[1728874110096,0.0048075,62689.0,62688.0,0.0490101]
[1728874110331,0.45253719,62689.0,62688.0,0.0490101]
[1728874110574,0.45253719,62689.0,62687.0,0.001638]
[1728874110575,0.28252,62688.0,62687.0,0.001638]
[1728874110819,0.44773277,62688.0,62687.0,0.001638]
[1728874111054,0.60511372,62688.0,62687.0,0.001638]
[1728874111527,0.44374401,62688.0,62687.0,0.001638]
[1728874112025,0.45074401,62688.0,62687.0,0.001638]
[1728874113154,0.33574401,62688.0,62687.0,0.001638]
[1728874115217,0.43574401,62688.0,62687.0,0.001638]
[1728874115990,0.4607408,62688.0,62687.0,0.001638]
[1728874116487,0.29951679,62688.0,62687.0,0.001638]
[1728874116734,0.14398497,62688.0,62687.0,0.178738]
[1728874116970,0.03999679,62688.0,62687.0,0.178738]
[1728874117231,0.03999679,62688.0,62687.0,0.35018501]
[1728874117470,0.03999679,62688.0,62687.0,0.19066301]
[1728874117744,0.03999679,62688.0,62687.0,0.35018501]
[1728874118768,0.03299679,62688.0,62687.0,0.35037751]
[1728874119002,0.02499679,62688.0,62687.0,0.35037751]
[1728874119264,0.03999679,62688.0,62687.0,0.35037751]
[1728874119497,0.03299679,62688.0,62687.0,0.35037751]
[1728874119718,0.02499679,62688.0,62687.0,0.35037751]
[1728874120182,0.02599679,62688.0,62687.0,0.35137751]
[1728874120466,0.02599679,62688.0,62687.0,0.51760152]
[1728874120700,0.5,62689.0,62688.0,0.3765025]
[1728874120947,0.5,62689.0,62688.0,0.53572651]
[1728874121196,0.5,62689.0,62688.0,0.54759942]
[1728874121749,0.23772356,62709.0,62697.0,0.1596895]
[1728874121981,0.23772356,62709.0,62708.0,0.1596615]
[1728874122449,0.159452,62715.0,62709.0,0.318931]
[1728874122782,0.23772356,62716.0,62711.0,0.0001925]
[1728874122967,0.500819,62713.0,62711.0,0.1596525]
[1728874123238,0.660275,62713.0,62712.0,0.01181068]
[1728874123494,0.500819,62713.0,62712.0,0.01181068]
[1728874123967,0.660275,62713.0,62712.0,0.01181068]
[1728874124198,0.160275,62713.0,62712.0,0.01181068]
[1728874124425,0.162275,62713.0,62712.0,0.01181068]
[1728874124895,0.18725925,62713.0,62712.0,0.01181068]
[1728874128943,0.02780325,62713.0,62712.0,0.01181068]
[1728874129139,0.18725925,62713.0,62712.0,0.01181068]
[1728874131329,0.18725925,62713.0,62712.0,0.01200318]
[1728874132826,0.162275,62713.0,62712.0,0.01200318]
[1728874134435,0.002819,62713.0,62712.0,0.01200318]
[1728874135360,0.000819,62713.0,62712.0,0.01200318]
[1728874136501,0.002819,62713.0,62712.0,0.01200318]
[1728874140040,0.162275,62713.0,62712.0,0.01200318]
[1728874140528,0.159459,62712.0,62711.0,0.0001925]
[1728874141047,0.159459,62712.0,62708.0,0.0001925]
[1728874141048,0.159466,62709.0,62708.0,0.0001925]
[1728874141311,0.159466,62709.0,62706.0,0.0001925]
[1728874141312,0.159471,62707.0,62706.0,0.0001925]
[1728874141774,0.16345791,62707.0,62706.0,0.0001925]
[1728874142026,0.18844354,62707.0,62706.0,0.0001925]
[1728874142705,0.18844354,62707.0,62706.0,0.0041925]
[1728874142908,0.16345791,62707.0,62706.0,0.0041925]
[1728874143143,0.16345791,62707.0,62706.0,0.0001925]
[1728874143594,0.16545791,62707.0,62706.0,0.0001925]
[1728874144246,0.16645791,62707.0,62706.0,0.0011925]
[1728874144508,0.16545791,62707.0,62706.0,0.0001925]
[1728874145802,0.159482,62703.0,62702.0,0.0001925]
[1728874146029,0.159482,62703.0,62694.0,0.793405]
[1728874146030,0.00398732,62703.0,62701.0,0.0001925]
[1728874146250,0.478453,62702.0,62701.0,0.0001925]
[1728874146909,0.576253,62702.0,62701.0,0.0001925]
[1728874147379,0.576253,62702.0,62701.0,0.0011925]
[1728874147603,0.0978,62702.0,62701.0,0.0001925]
[1728874147827,0.18621046,62707.0,62706.0,0.0001925]
[1728874147828,0.18445745,62707.0,62706.0,0.0001925]
[1728874148041,0.02498645,62707.0,62706.0,0.0001925]
[1728874148747,0.18445745,62707.0,62706.0,0.0001925]
[1728874149845,0.18645745,62707.0,62706.0,0.0001925]
[1728874150106,0.02698645,62707.0,62706.0,0.0001925]
[1728874150756,0.19145745,62707.0,62706.0,0.0001925]
[1728874150976,0.159482,62703.0,62700.0,0.0001925]
[1728874151216,0.00398705,62703.0,62702.0,0.0001925]
[1728874151445,0.16346905,62703.0,62702.0,0.0001925]
[1728874151903,0.159482,62703.0,62702.0,0.0001925]
[1728874152126,0.161482,62703.0,62702.0,0.0001925]
[1728874152608,0.159482,62703.0,62702.0,0.0001925]
[1728874152831,0.16346924,62703.0,62702.0,0.0001925]
[1728874153073,0.16546924,62703.0,62702.0,0.0001925]
[1728874154908,0.161482,62703.0,62702.0,0.0001925]
[1728874155355,0.16546924,62703.0,62702.0,0.0001925]
[1728874156057,0.19045678,62703.0,62702.0,0.0001925]
[1728874156750,0.18646954,62703.0,62702.0,0.0001925]
[1728874156978,0.02698754,62703.0,62702.0,0.0001925]
[1728874157198,0.19045679,62703.0,62702.0,0.0001925]
[1728874157425,0.02698754,62703.0,62702.0,0.0001925]
[1728874157853,0.02698754,62703.0,62702.0,0.1596765]
[1728874158069,0.02698754,62703.0,62702.0,0.17147882]
[1728874158651,0.02498754,62703.0,62702.0,0.17147882]
[1728874158896,0.0399399,62703.0,62702.0,0.17147882]
[1728874159101,0.0419399,62703.0,62702.0,0.17147882]
[1728874159696,0.02698754,62703.0,62702.0,0.17147882]
[1728874159895,0.04194037,62703.0,62702.0,0.17247882]
[1728874160322,0.03994037,62703.0,62702.0,0.17247882]
[1728874160722,0.03994037,62703.0,62702.0,0.17147882]
[1728874160994,0.03994037,62703.0,62702.0,0.17247882]
[1728874161327,0.03994037,62703.0,62702.0,0.17347882]
[1728874162751,0.01495283,62703.0,62702.0,0.17347882]
[1728874163307,0.159467,62709.0,62706.0,0.0001925]
[1728874163522,0.01495567,62708.0,62706.0,0.0001925]
[1728874163763,0.01495567,62707.0,62706.0,0.0001925]
[1728874163972,0.159467,62709.0,62707.0,0.01178234]
[1728874164198,0.159469,62708.0,62706.0,0.0001925]
[1728874164851,0.008,62709.0,62707.0,0.01178234]
[1728874165073,0.003,62709.0,62707.0,0.01178234]
[1728874165295,0.003,62709.0,62706.0,0.0001925]
[1728874165296,0.004,62708.0,62706.0,0.0001925]
[1728874165953,0.0289856,62708.0,62706.0,0.0001925]
[1728874166685,0.0249856,62708.0,62706.0,0.0001925]
[1728874166896,0.0269856,62708.0,62706.0,0.0001925]
[1728874167116,0.1864556,62708.0,62706.0,0.0001925]
[1728874167805,0.1904556,62708.0,62706.0,0.0001925]
[1728874168031,0.159471,62707.0,62706.0,0.0001925]